[Event "Titled Tuesday Blitz April 11 Early 2023"]
[White "Vivas Zamora, Fabian Ernesto"]
[Black "MKlose11"]
[WhiteFideId "3902480"]
[WhiteElo "2262"]
[BlackElo "2577"]
[Result "0-1"]
[Round "03"]
[TimeControl "180+2"]
[Date "2023.04.11"]
[WhiteClock "0:00:01"]
[BlackClock "0:00:11"]

1. e4 {[%clk 0:02:54]}  e6 {[%clk 0:02:59]} 2. d4 {[%clk 0:02:54]}  d5 {[%clk 0:03:00]} 3. Nd2 {[%clk 0:02:54]}  Be7 {[%clk 0:02:59]} 4. Ngf3 {[%clk 0:02:54]}  Nf6 {[%clk 0:02:57]} 5. e5 {[%clk 0:02:54]}  Nfd7 {[%clk 0:02:58]} 6. Bd3 {[%clk 0:02:55]}  c5 {[%clk 0:02:58]} 7. c3 {[%clk 0:02:55]}  Nc6 {[%clk 0:02:59]} 8. O-O {[%clk 0:02:55]}  a5 {[%clk 0:02:59]} 9. a4 {[%clk 0:02:39]}  cxd4 {[%clk 0:02:58]} 10. cxd4 {[%clk 0:02:39]}  Nb4 {[%clk 0:02:58]} 11. Bb1 {[%clk 0:02:38]}  b6 {[%clk 0:02:59]} 12. Re1 {[%clk 0:02:34]}  Ba6 {[%clk 0:02:58]} 13. Nf1 {[%clk 0:02:23]}  Rc8 {[%clk 0:02:54]} 14. Ng3 {[%clk 0:02:00]}  Qc7 {[%clk 0:02:43]} 15. Ra3 {[%clk 0:01:54]}  Nc2 {[%clk 0:02:32]} 16. Rc3 {[%clk 0:01:49]}  Nxe1 {[%clk 0:02:32]} 17. Rxc7 {[%clk 0:01:48]}  Nxf3+ {[%clk 0:02:32]} 18. Qxf3 {[%clk 0:01:46]}  Rxc7 {[%clk 0:02:33]} 19. Be3 {[%clk 0:01:36]}  g6 {[%clk 0:02:28]} 20. Bh6 {[%clk 0:01:28]}  Bf8 {[%clk 0:02:19]} 21. Qf4 {[%clk 0:01:05]}  Be7 {[%clk 0:02:03]} 22. h4 {[%clk 0:01:01]}  Bc4 {[%clk 0:01:52]} 23. h5 {[%clk 0:00:31]}  Bb3 {[%clk 0:01:51]} 24. Bg7 {[%clk 0:00:17]}  Rg8 {[%clk 0:01:49]} 25. Bf6 {[%clk 0:00:17]}  Bc2 {[%clk 0:01:33]} 26. Bxc2 {[%clk 0:00:15]}  Rxc2 {[%clk 0:01:33]} 27. Bxe7 {[%clk 0:00:13]}  Kxe7 {[%clk 0:01:32]} 28. Qf3 {[%clk 0:00:07]}  Rxb2 {[%clk 0:01:21]} 29. Qa3+ {[%clk 0:00:07]}  Rb4 {[%clk 0:01:21]} 30. Qc1 {[%clk 0:00:03]}  Rc4 {[%clk 0:00:59]} 31. Qa3+ {[%clk 0:00:03]}  Rb4 {[%clk 0:00:54]} 32. Qc1 {[%clk 0:00:03]}  Rxd4 {[%clk 0:00:47]} 33. Qc6 {[%clk 0:00:03]}  Nxe5 {[%clk 0:00:34]} 34. Qxb6 {[%clk 0:00:03]}  Rd1+ {[%clk 0:00:20]} 35. Kh2 {[%clk 0:00:03]}  g5 {[%clk 0:00:21]} 36. f3 {[%clk 0:00:02]}  g4 {[%clk 0:00:20]} 37. f4 {[%clk 0:00:02]}  Nc4 {[%clk 0:00:19]} 38. Qc7+ {[%clk 0:00:01]}  Kf6 {[%clk 0:00:19]} 39. Qa7 {[%clk 0:00:01]}  Rd2 {[%clk 0:00:17]} 40. f5 {[%clk 0:00:01]}  Rg5 {[%clk 0:00:15]} 41. Qa6 {[%clk 0:00:01]}  Rxf5 {[%clk 0:00:15]} 42. Nxf5 {[%clk 0:00:01]}  Kxf5 {[%clk 0:00:15]} 43. Qa7 {[%clk 0:00:01]}  Kf6 {[%clk 0:00:15]} 44. Qc7 {[%clk 0:00:01]}  e5 {[%clk 0:00:14]} 45. Qd8+ {[%clk 0:00:02]}  Kf5 {[%clk 0:00:14]} 46. Qg8 {[%clk 0:00:02]}  Ne3 {[%clk 0:00:09]} 47. Qxh7+ {[%clk 0:00:03]}  Kg5 {[%clk 0:00:07]} 48. Qg7+ {[%clk 0:00:03]}  Kf4 {[%clk 0:00:08]} 49. Qxf7+ {[%clk 0:00:03]}  Ke4 {[%clk 0:00:08]} 50. Qg6+ {[%clk 0:00:03]}  Kd4 {[%clk 0:00:09]} 51. h6 {[%clk 0:00:04]}  Nxg2 {[%clk 0:00:08]} 52. Kg3 {[%clk 0:00:04]}  Nf4 {[%clk 0:00:08]} 53. Qe8 {[%clk 0:00:03]}  Rg2+ {[%clk 0:00:08]} 54. Kh4 {[%clk 0:00:03]}  Rh2+ {[%clk 0:00:09]} 55. Kg5 {[%clk 0:00:04]}  g3 {[%clk 0:00:09]} 56. Qb5 {[%clk 0:00:02]}  Rh5+ {[%clk 0:00:09]} 57. Kf6 {[%clk 0:00:02]}  Rxh6+ {[%clk 0:00:09]} 58. Ke7 {[%clk 0:00:02]}  Re6+ {[%clk 0:00:09]} 59. Kd7 {[%clk 0:00:02]}  g2 {[%clk 0:00:10]} 60. Qb2+ {[%clk 0:00:01]}  Ke4 {[%clk 0:00:10]} 61. Qb1+ {[%clk 0:00:01]}  Kf3 {[%clk 0:00:11]} 62. Qb3+ {[%clk 0:00:01]}  Kg4 {[%clk 0:00:10]} 63. Qd1+ {[%clk 0:00:01]}  Kg3 {[%clk 0:00:09]} 64. Qe1+ {[%clk 0:00:01]}  Kg4 {[%clk 0:00:09]} 65. Qg1 {[%clk 0:00:01]}  Kf5 {[%clk 0:00:10]} 66. Qc1 {[%clk 0:00:01]}  Rg6 {[%clk 0:00:10]} 67. Qb1+ {[%clk 0:00:01]}  Kg5 {[%clk 0:00:10]} 68. Qe1 {[%clk 0:00:01]}  Kh6 {[%clk 0:00:11]} 69. Qh4+ {[%clk 0:00:01]}  Nh5 {[%clk 0:00:11]} 0-1


[Site "https://www.chess.com"]

[Event "Titled Tuesday Blitz April 11 Early 2023"]
[White "Liew, Chee-Meng Jimmy"]
[Black "Guz, Ari"]
[WhiteFideId "5700019"]
[BlackFideId "2825759"]
[WhiteElo "2245"]
[BlackElo "2205"]
[Result "1-0"]
[Round "03"]
[TimeControl "180+2"]
[Date "2023.04.11"]
[WhiteClock "0:00:32"]
[BlackClock "0:00:18"]

1. d4 {[%clk 0:03:00]}  h5 {[%clk 0:02:45]} 2. e4 {[%clk 0:02:59]}  d5 {[%clk 0:02:44]} 3. exd5 {[%clk 0:02:58]}  Qxd5 {[%clk 0:02:43]} 4. Nc3 {[%clk 0:02:58]}  Qd8 {[%clk 0:02:44]} 5. Nf3 {[%clk 0:02:57]}  Nf6 {[%clk 0:02:43]} 6. h3 {[%clk 0:02:55]}  b6 {[%clk 0:02:42]} 7. Bc4 {[%clk 0:02:52]}  e6 {[%clk 0:02:42]} 8. O-O {[%clk 0:02:51]}  Bb7 {[%clk 0:02:42]} 9. Ne5 {[%clk 0:02:46]}  Nbd7 {[%clk 0:02:39]} 10. Qe2 {[%clk 0:02:40]}  Nxe5 {[%clk 0:02:36]} 11. dxe5 {[%clk 0:02:41]}  Nd5 {[%clk 0:02:36]} 12. Nxd5 {[%clk 0:02:36]}  Bxd5 {[%clk 0:02:28]} 13. Rd1 {[%clk 0:02:35]}  c6 {[%clk 0:02:29]} 14. Bb3 {[%clk 0:02:31]}  b5 {[%clk 0:02:26]} 15. a4 {[%clk 0:02:25]}  a6 {[%clk 0:02:25]} 16. axb5 {[%clk 0:02:21]}  axb5 {[%clk 0:02:26]} 17. Rxa8 {[%clk 0:02:22]}  Qxa8 {[%clk 0:02:26]} 18. c4 {[%clk 0:02:22]}  bxc4 {[%clk 0:02:26]} 19. Bxc4 {[%clk 0:02:23]}  Qa4 {[%clk 0:02:17]} 20. b3 {[%clk 0:02:20]}  Qb4 {[%clk 0:02:07]} 21. Bxd5 {[%clk 0:02:15]}  cxd5 {[%clk 0:02:07]} 22. Qa6 {[%clk 0:01:53]}  Qxb3 {[%clk 0:00:37]} 23. Qc8+ {[%clk 0:01:51]}  Ke7 {[%clk 0:00:38]} 24. Qc7+ {[%clk 0:01:52]}  Ke8 {[%clk 0:00:37]} 25. Qc6+ {[%clk 0:01:52]}  Ke7 {[%clk 0:00:36]} 26. Bg5+ {[%clk 0:01:49]}  f6 {[%clk 0:00:32]} 27. exf6+ {[%clk 0:01:48]}  gxf6 {[%clk 0:00:31]} 28. Qc7+ {[%clk 0:01:48]}  Ke8 {[%clk 0:00:32]} 29. Re1 {[%clk 0:01:36]}  d4 {[%clk 0:00:19]} 30. Bxf6 {[%clk 0:01:36]}  Rh6 {[%clk 0:00:20]} 31. Bxd4 {[%clk 0:01:30]}  Qd5 {[%clk 0:00:20]} 32. Be5 {[%clk 0:01:20]}  Rg6 {[%clk 0:00:20]} 33. g3 {[%clk 0:01:14]}  h4 {[%clk 0:00:20]} 34. Ra1 {[%clk 0:00:57]}  Be7 {[%clk 0:00:20]} 35. Ra7 {[%clk 0:00:53]}  Qd1+ {[%clk 0:00:19]} 36. Kh2 {[%clk 0:00:53]}  hxg3+ {[%clk 0:00:20]} 37. Bxg3 {[%clk 0:00:54]}  Rg7 {[%clk 0:00:20]} 38. Ra8+ {[%clk 0:00:49]}  Kf7 {[%clk 0:00:20]} 39. Qf4+ {[%clk 0:00:49]}  Kg6 {[%clk 0:00:19]} 40. Ra6 {[%clk 0:00:43]}  Qd5 {[%clk 0:00:20]} 41. Qg4+ {[%clk 0:00:41]}  Kf7 {[%clk 0:00:20]} 42. Qf4+ {[%clk 0:00:40]}  Kg6 {[%clk 0:00:19]} 43. Ra7 {[%clk 0:00:35]}  Rf7 {[%clk 0:00:19]} 44. Qg4+ {[%clk 0:00:34]}  Kh7 {[%clk 0:00:19]} 45. Rxe7 {[%clk 0:00:31]}  Rxe7 {[%clk 0:00:18]} 46. Qh4+ {[%clk 0:00:32]} 1-0


[Site "https://www.chess.com"]

[Event "Titled Tuesday Blitz April 11 Early 2023"]
[White "Janaszak, Dawid"]
[Black "Balint, Vilmos"]
[WhiteFideId "1119206"]
[BlackFideId "718050"]
[WhiteElo "2220"]
[BlackElo "2034"]
[Result "1-0"]
[Round "03"]
[TimeControl "180+2"]
[Date "2023.04.11"]
[WhiteClock "0:02:15"]
[BlackClock "0:02:29"]

1. e4 {[%clk 0:03:00]}  e6 {[%clk 0:02:58]} 2. d4 {[%clk 0:03:00]}  Nc6 {[%clk 0:02:59]} 3. Bd3 {[%clk 0:03:01]}  d5 {[%clk 0:02:59]} 4. c3 {[%clk 0:02:58]}  dxe4 {[%clk 0:02:57]} 5. Bxe4 {[%clk 0:02:59]}  Nf6 {[%clk 0:02:58]} 6. Bf3 {[%clk 0:02:59]}  Be7 {[%clk 0:02:56]} 7. Ne2 {[%clk 0:02:58]}  O-O {[%clk 0:02:56]} 8. O-O {[%clk 0:02:54]}  e5 {[%clk 0:02:57]} 9. Bxc6 {[%clk 0:02:53]}  bxc6 {[%clk 0:02:56]} 10. dxe5 {[%clk 0:02:53]}  Qxd1 {[%clk 0:02:55]} 11. Rxd1 {[%clk 0:02:53]}  Ng4 {[%clk 0:02:56]} 12. Bf4 {[%clk 0:02:45]}  Bc5 {[%clk 0:02:56]} 13. Nd4 {[%clk 0:02:45]}  Re8 {[%clk 0:02:54]} 14. b4 {[%clk 0:02:43]}  Bb6 {[%clk 0:02:52]} 15. Na3 {[%clk 0:02:28]}  c5 {[%clk 0:02:49]} 16. bxc5 {[%clk 0:02:28]}  Bxc5 {[%clk 0:02:50]} 17. Nab5 {[%clk 0:02:24]}  Re7 {[%clk 0:02:37]} 18. Nc6 {[%clk 0:02:17]}  Nxf2 {[%clk 0:02:29]} 19. Rd8+ {[%clk 0:02:15]} 1-0


[Site "https://www.chess.com"]

[Event "Titled Tuesday Blitz April 11 Early 2023"]
[White "Hoffmann, Asa"]
[Black "Kim, Sergey"]
[WhiteFideId "2001470"]
[BlackFideId "13700570"]
[WhiteElo "2117"]
[BlackElo "2576"]
[Result "0-1"]
[Round "03"]
[TimeControl "180+2"]
[Date "2023.04.11"]
[WhiteClock "0:00:44"]
[BlackClock "0:01:01"]

1. d4 {[%clk 0:02:53]}  Nf6 {[%clk 0:02:59]} 2. Bg5 {[%clk 0:02:50]}  g6 {[%clk 0:02:59]} 3. Nc3 {[%clk 0:02:50]}  d6 {[%clk 0:02:58]} 4. e4 {[%clk 0:02:49]}  c6 {[%clk 0:02:58]} 5. f3 {[%clk 0:02:49]}  Qc7 {[%clk 0:02:56]} 6. Qd2 {[%clk 0:02:49]}  Nbd7 {[%clk 0:02:56]} 7. O-O-O {[%clk 0:02:48]}  b5 {[%clk 0:02:56]} 8. a3 {[%clk 0:02:46]}  a5 {[%clk 0:02:55]} 9. Nh3 {[%clk 0:02:42]}  b4 {[%clk 0:02:53]} 10. Nb1 {[%clk 0:02:41]}  bxa3 {[%clk 0:02:50]} 11. Nxa3 {[%clk 0:02:41]}  h6 {[%clk 0:02:49]} 12. Be3 {[%clk 0:02:40]}  Bg7 {[%clk 0:02:48]} 13. Be2 {[%clk 0:02:15]}  Rb8 {[%clk 0:02:42]} 14. c3 {[%clk 0:02:05]}  Nb6 {[%clk 0:02:37]} 15. Nf2 {[%clk 0:02:04]}  Na4 {[%clk 0:02:34]} 16. Nd3 {[%clk 0:01:56]}  Ba6 {[%clk 0:02:31]} 17. c4 {[%clk 0:01:44]}  Nd7 {[%clk 0:02:08]} 18. Qc2 {[%clk 0:01:43]}  Nab6 {[%clk 0:02:01]} 19. c5 {[%clk 0:01:37]}  Nc8 {[%clk 0:02:00]} 20. Nf4 {[%clk 0:01:29]}  Bxe2 {[%clk 0:01:55]} 21. Nxe2 {[%clk 0:01:29]}  O-O {[%clk 0:01:52]} 22. h4 {[%clk 0:01:28]}  dxc5 {[%clk 0:01:49]} 23. h5 {[%clk 0:01:22]}  g5 {[%clk 0:01:48]} 24. Nc3 {[%clk 0:01:16]}  cxd4 {[%clk 0:01:37]} 25. Bxd4 {[%clk 0:01:16]}  Ne5 {[%clk 0:01:37]} 26. Rd2 {[%clk 0:01:07]}  Nd6 {[%clk 0:01:35]} 27. Rhd1 {[%clk 0:01:06]}  Rb4 {[%clk 0:01:26]} 28. Bc5 {[%clk 0:01:04]}  Rfb8 {[%clk 0:01:23]} 29. Bxb4 {[%clk 0:01:02]}  axb4 {[%clk 0:01:22]} 30. Nd5 {[%clk 0:01:02]}  Qa7 {[%clk 0:01:18]} 31. Nb1 {[%clk 0:00:52]}  cxd5 {[%clk 0:01:15]} 32. Rxd5 {[%clk 0:00:52]}  Rc8 {[%clk 0:01:14]} 33. Qxc8+ {[%clk 0:00:51]}  Nxc8 {[%clk 0:01:13]} 34. Rd8+ {[%clk 0:00:51]}  Kh7 {[%clk 0:01:13]} 35. Rxc8 {[%clk 0:00:51]}  Qe3+ {[%clk 0:01:11]} 36. Rd2 {[%clk 0:00:49]}  Nd3+ {[%clk 0:01:09]} 37. Kc2 {[%clk 0:00:49]}  Ne1+ {[%clk 0:01:03]} 38. Kd1 {[%clk 0:00:48]}  Nd3 {[%clk 0:01:02]} 39. Kc2 {[%clk 0:00:48]}  Nxb2 {[%clk 0:01:02]} 40. Rcd8 {[%clk 0:00:44]}  b3+ {[%clk 0:01:01]} 0-1


[Site "https://www.chess.com"]

[Event "Titled Tuesday Blitz April 11 Early 2023"]
[White "Jeet, Jain"]
[Black "Bogaudinov, Rushan"]
[WhiteFideId "5073022"]
[BlackFideId "4129288"]
[WhiteElo "2067"]
[BlackElo "1967"]
[Result "1-0"]
[Round "03"]
[TimeControl "180+2"]
[Date "2023.04.11"]
[WhiteClock "0:00:54"]
[BlackClock "0:00:04"]

1. Nf3 {[%clk 0:03:00]}  d5 {[%clk 0:02:53]} 2. b3 {[%clk 0:02:49]}  a5 {[%clk 0:02:52]} 3. a3 {[%clk 0:02:44]}  g6 {[%clk 0:02:47]} 4. Bb2 {[%clk 0:02:44]}  Nf6 {[%clk 0:02:48]} 5. e3 {[%clk 0:02:41]}  Bg7 {[%clk 0:02:48]} 6. c4 {[%clk 0:02:41]}  c6 {[%clk 0:02:46]} 7. d4 {[%clk 0:02:38]}  O-O {[%clk 0:02:46]} 8. Bd3 {[%clk 0:02:38]}  Nbd7 {[%clk 0:02:39]} 9. Nbd2 {[%clk 0:02:36]}  b6 {[%clk 0:02:25]} 10. h3 {[%clk 0:02:36]}  Ba6 {[%clk 0:02:25]} 11. Rc1 {[%clk 0:02:34]}  a4 {[%clk 0:02:12]} 12. b4 {[%clk 0:02:33]}  c5 {[%clk 0:02:00]} 13. dxc5 {[%clk 0:02:30]}  bxc5 {[%clk 0:02:00]} 14. b5 {[%clk 0:02:29]}  Bb7 {[%clk 0:02:00]} 15. O-O {[%clk 0:02:28]}  Nb6 {[%clk 0:01:53]} 16. cxd5 {[%clk 0:02:26]}  Qxd5 {[%clk 0:01:53]} 17. Qc2 {[%clk 0:02:23]}  Rfd8 {[%clk 0:01:50]} 18. Bxf6 {[%clk 0:02:16]}  Qxd3 {[%clk 0:01:41]} 19. Bxg7 {[%clk 0:02:13]}  Qxc2 {[%clk 0:01:38]} 20. Rxc2 {[%clk 0:02:13]}  Kxg7 {[%clk 0:01:39]} 21. Rxc5 {[%clk 0:02:13]}  Rd3 {[%clk 0:01:33]} 22. Ra1 {[%clk 0:02:12]}  Rad8 {[%clk 0:01:30]} 23. Kh2 {[%clk 0:01:56]}  Rxd2 {[%clk 0:01:24]} 24. Nxd2 {[%clk 0:01:57]}  Rxd2 {[%clk 0:01:25]} 25. Kg3 {[%clk 0:01:53]}  h5 {[%clk 0:01:23]} 26. h4 {[%clk 0:01:51]}  Rd5 {[%clk 0:01:03]} 27. Rc7 {[%clk 0:01:37]}  Rd7 {[%clk 0:01:01]} 28. Rac1 {[%clk 0:01:36]}  Bd5 {[%clk 0:00:35]} 29. Rxd7 {[%clk 0:01:36]}  Nxd7 {[%clk 0:00:36]} 30. Rc7 {[%clk 0:01:36]}  Nf6 {[%clk 0:00:33]} 31. b6 {[%clk 0:01:31]}  Ne4+ {[%clk 0:00:32]} 32. Kh2 {[%clk 0:01:26]}  Nd6 {[%clk 0:00:30]} 33. Ra7 {[%clk 0:01:20]}  Bc6 {[%clk 0:00:22]} 34. Rxe7 {[%clk 0:01:19]}  Kf6 {[%clk 0:00:21]} 35. Rc7 {[%clk 0:01:19]}  Bb7 {[%clk 0:00:19]} 36. f3 {[%clk 0:01:13]}  Ke6 {[%clk 0:00:19]} 37. e4 {[%clk 0:01:11]}  Ba8 {[%clk 0:00:16]} 38. Kg3 {[%clk 0:01:07]}  Nb5 {[%clk 0:00:13]} 39. b7 {[%clk 0:01:02]}  Nxc7 {[%clk 0:00:10]} 40. b8=Q {[%clk 0:01:02]}  Kd7 {[%clk 0:00:10]} 41. Qf8 {[%clk 0:00:56]}  Ke6 {[%clk 0:00:08]} 42. Qd8 {[%clk 0:00:56]}  Nb5 {[%clk 0:00:03]} 43. Qxa8 {[%clk 0:00:55]}  Nxa3 {[%clk 0:00:04]} 44. Qc6+ {[%clk 0:00:54]} 1-0


[Site "https://www.chess.com"]

[Event "Titled Tuesday Blitz April 11 Early 2023"]
[White "Pham, Le Thao Nguyen"]
[Black "Rodriguez Santiago, Jaime"]
[WhiteFideId "12401226"]
[BlackFideId "3100898"]
[WhiteElo "2286"]
[BlackElo "2025"]
[Result "1-0"]
[Round "03"]
[TimeControl "180+2"]
[Date "2023.04.11"]
[WhiteClock "0:00:06"]
[BlackClock "0:00:09"]

1. d4 {[%clk 0:02:56]}  g6 {[%clk 0:02:57]} 2. Nf3 {[%clk 0:02:56]}  Bg7 {[%clk 0:02:57]} 3. g3 {[%clk 0:02:56]}  d6 {[%clk 0:02:58]} 4. Bg2 {[%clk 0:02:57]}  Nf6 {[%clk 0:02:58]} 5. O-O {[%clk 0:02:57]}  O-O {[%clk 0:02:58]} 6. c4 {[%clk 0:02:58]}  c6 {[%clk 0:02:56]} 7. Nc3 {[%clk 0:02:58]}  Nbd7 {[%clk 0:02:55]} 8. e4 {[%clk 0:02:52]}  e5 {[%clk 0:02:54]} 9. Re1 {[%clk 0:02:53]}  Qc7 {[%clk 0:02:47]} 10. h3 {[%clk 0:02:51]}  Nh5 {[%clk 0:02:42]} 11. Be3 {[%clk 0:02:40]}  exd4 {[%clk 0:02:40]} 12. Nxd4 {[%clk 0:02:20]}  Nb6 {[%clk 0:02:30]} 13. b3 {[%clk 0:02:14]}  Nf6 {[%clk 0:02:20]} 14. Qc2 {[%clk 0:02:11]}  a5 {[%clk 0:02:14]} 15. a4 {[%clk 0:01:55]}  Ne8 {[%clk 0:02:07]} 16. Rad1 {[%clk 0:01:55]}  Be6 {[%clk 0:01:59]} 17. Nxe6 {[%clk 0:01:37]}  fxe6 {[%clk 0:01:57]} 18. c5 {[%clk 0:01:37]}  dxc5 {[%clk 0:01:40]} 19. Bxc5 {[%clk 0:01:38]}  Rf7 {[%clk 0:01:40]} 20. f4 {[%clk 0:01:31]}  e5 {[%clk 0:01:29]} 21. f5 {[%clk 0:01:28]}  Nd7 {[%clk 0:01:24]} 22. Be3 {[%clk 0:01:17]}  Nef6 {[%clk 0:01:09]} 23. g4 {[%clk 0:01:15]}  gxf5 {[%clk 0:01:07]} 24. exf5 {[%clk 0:01:11]}  Raf8 {[%clk 0:01:02]} 25. Qe2 {[%clk 0:00:52]}  Kh8 {[%clk 0:00:45]} 26. Rf1 {[%clk 0:00:46]}  Ne8 {[%clk 0:00:37]} 27. Ne4 {[%clk 0:00:44]}  Ndf6 {[%clk 0:00:28]} 28. Ng5 {[%clk 0:00:43]}  Rd7 {[%clk 0:00:28]} 29. Ne6 {[%clk 0:00:42]}  Qc8 {[%clk 0:00:25]} 30. Nxf8 {[%clk 0:00:37]}  Bxf8 {[%clk 0:00:23]} 31. g5 {[%clk 0:00:29]}  Nd5 {[%clk 0:00:21]} 32. Bxd5 {[%clk 0:00:11]}  cxd5 {[%clk 0:00:22]} 33. f6 {[%clk 0:00:11]}  d4 {[%clk 0:00:19]} 34. Bf2 {[%clk 0:00:08]}  Bd6 {[%clk 0:00:14]} 35. Qe4 {[%clk 0:00:08]}  Rf7 {[%clk 0:00:13]} 36. h4 {[%clk 0:00:07]}  Qh3 {[%clk 0:00:13]} 37. Qg2 {[%clk 0:00:06]}  Qe6 {[%clk 0:00:12]} 38. Rfe1 {[%clk 0:00:04]}  Bb8 {[%clk 0:00:10]} 39. Bxd4 {[%clk 0:00:04]}  e4 {[%clk 0:00:10]} 40. Be3 {[%clk 0:00:03]}  Qe5 {[%clk 0:00:10]} 41. Bf2 {[%clk 0:00:03]}  Nd6 {[%clk 0:00:10]} 42. Rxd6 {[%clk 0:00:03]}  Qxd6 {[%clk 0:00:10]} 43. Rxe4 {[%clk 0:00:04]}  Qd1+ {[%clk 0:00:10]} 44. Re1 {[%clk 0:00:04]}  Qxb3 {[%clk 0:00:09]} 45. Re8+ {[%clk 0:00:04]}  Rf8 {[%clk 0:00:07]} 46. Rxf8+ {[%clk 0:00:05]}  Qg8 {[%clk 0:00:08]} 47. Rxg8+ {[%clk 0:00:05]}  Kxg8 {[%clk 0:00:09]} 48. Qxb7 {[%clk 0:00:06]} 1-0


[Site "https://www.chess.com"]

[Event "Titled Tuesday Blitz April 11 Early 2023"]
[White "slidingknight2775"]
[Black "Dwilewicz, Katarzyna"]
[BlackFideId "1148486"]
[WhiteElo "2568"]
[BlackElo "2065"]
[Result "1-0"]
[Round "03"]
[TimeControl "180+2"]
[Date "2023.04.11"]
[WhiteClock "0:00:42"]
[BlackClock "0:00:48"]

1. d4 {[%clk 0:03:00]}  Nf6 {[%clk 0:02:52]} 2. c4 {[%clk 0:03:00]}  g6 {[%clk 0:02:52]} 3. Nc3 {[%clk 0:02:56]}  Bg7 {[%clk 0:02:52]} 4. e4 {[%clk 0:02:56]}  O-O {[%clk 0:02:52]} 5. Nge2 {[%clk 0:02:55]}  d6 {[%clk 0:02:52]} 6. Ng3 {[%clk 0:02:55]}  e5 {[%clk 0:02:51]} 7. d5 {[%clk 0:02:55]}  a5 {[%clk 0:02:45]} 8. Be2 {[%clk 0:02:54]}  Na6 {[%clk 0:02:45]} 9. h4 {[%clk 0:02:52]}  Nc5 {[%clk 0:02:36]} 10. h5 {[%clk 0:02:50]}  c6 {[%clk 0:02:34]} 11. Be3 {[%clk 0:02:45]}  cxd5 {[%clk 0:02:32]} 12. cxd5 {[%clk 0:02:46]}  Bd7 {[%clk 0:02:28]} 13. h6 {[%clk 0:02:34]}  Bh8 {[%clk 0:02:27]} 14. O-O {[%clk 0:02:27]}  b5 {[%clk 0:02:10]} 15. Bxc5 {[%clk 0:02:23]}  dxc5 {[%clk 0:02:09]} 16. Bxb5 {[%clk 0:02:24]}  Ng4 {[%clk 0:01:26]} 17. Bxd7 {[%clk 0:02:16]}  Qxd7 {[%clk 0:01:26]} 18. Qd2 {[%clk 0:01:59]}  Qe7 {[%clk 0:01:23]} 19. f3 {[%clk 0:01:35]}  Nf6 {[%clk 0:01:09]} 20. Rad1 {[%clk 0:00:59]}  Nd7 {[%clk 0:01:08]} 21. d6 {[%clk 0:00:44]}  Qe6 {[%clk 0:00:51]} 22. Nd5 {[%clk 0:00:42]}  Qxd6 {[%clk 0:00:48]} 23. Nf5 {[%clk 0:00:42]} 1-0


[Site "https://www.chess.com"]

[Event "Titled Tuesday Blitz April 11 Early 2023"]
[White "Royal, Shreyas"]
[Black "micke12a"]
[WhiteFideId "448869"]
[WhiteElo "2331"]
[BlackElo "2327"]
[Result "1-0"]
[Round "03"]
[TimeControl "180+2"]
[Date "2023.04.11"]
[WhiteClock "0:01:48"]
[BlackClock "0:00:34"]

1. e4 {[%clk 0:03:00]}  c5 {[%clk 0:02:55]} 2. Nf3 {[%clk 0:02:58]}  e6 {[%clk 0:02:55]} 3. g3 {[%clk 0:02:56]}  Nc6 {[%clk 0:02:53]} 4. Bg2 {[%clk 0:02:56]}  d5 {[%clk 0:02:53]} 5. exd5 {[%clk 0:02:55]}  exd5 {[%clk 0:02:53]} 6. d4 {[%clk 0:02:55]}  Nf6 {[%clk 0:02:47]} 7. O-O {[%clk 0:02:54]}  Be7 {[%clk 0:02:44]} 8. c3 {[%clk 0:02:54]}  cxd4 {[%clk 0:02:41]} 9. Nxd4 {[%clk 0:02:54]}  O-O {[%clk 0:02:42]} 10. Be3 {[%clk 0:02:50]}  Ng4 {[%clk 0:02:35]} 11. Bf4 {[%clk 0:02:49]}  Nxd4 {[%clk 0:02:04]} 12. Qxd4 {[%clk 0:02:47]}  Be6 {[%clk 0:02:04]} 13. h3 {[%clk 0:02:41]}  Nf6 {[%clk 0:01:50]} 14. Nd2 {[%clk 0:02:40]}  Rc8 {[%clk 0:01:48]} 15. Qxa7 {[%clk 0:02:34]}  Nh5 {[%clk 0:01:37]} 16. Be3 {[%clk 0:02:32]}  Qd7 {[%clk 0:01:35]} 17. Nb3 {[%clk 0:02:25]}  Bxh3 {[%clk 0:01:31]} 18. Rfd1 {[%clk 0:02:14]}  Bxg2 {[%clk 0:01:31]} 19. Kxg2 {[%clk 0:02:15]}  Nf6 {[%clk 0:01:28]} 20. Qd4 {[%clk 0:02:09]}  Qf5 {[%clk 0:01:27]} 21. Rd2 {[%clk 0:02:07]}  Rc4 {[%clk 0:01:26]} 22. Qd3 {[%clk 0:02:06]}  Qe6 {[%clk 0:01:19]} 23. Re2 {[%clk 0:01:58]}  Qd7 {[%clk 0:00:46]} 24. Bd4 {[%clk 0:01:49]}  Ne4 {[%clk 0:00:39]} 25. Rxe4 {[%clk 0:01:48]}  dxe4 {[%clk 0:00:34]} 26. Qxc4 {[%clk 0:01:48]} 1-0


[Site "https://www.chess.com"]

[Event "Titled Tuesday Blitz April 11 Early 2023"]
[White "crosky"]
[Black "Gontcharov, Vladislav"]
[BlackFideId "4123492"]
[WhiteElo "2314"]
[BlackElo "2420"]
[Result "0-1"]
[Round "03"]
[TimeControl "180+2"]
[Date "2023.04.11"]
[WhiteClock "0:00:19"]
[BlackClock "0:01:19"]

1. c4 {[%clk 0:03:00]}  Nf6 {[%clk 0:02:57]} 2. Nc3 {[%clk 0:03:00]}  g6 {[%clk 0:02:51]} 3. e4 {[%clk 0:03:00]}  d6 {[%clk 0:02:51]} 4. d4 {[%clk 0:03:00]}  Bg7 {[%clk 0:02:51]} 5. Be2 {[%clk 0:03:01]}  O-O {[%clk 0:02:50]} 6. Bg5 {[%clk 0:03:02]}  c5 {[%clk 0:02:49]} 7. d5 {[%clk 0:03:02]}  b5 {[%clk 0:02:49]} 8. cxb5 {[%clk 0:03:01]}  a6 {[%clk 0:02:49]} 9. a4 {[%clk 0:02:59]}  Qa5 {[%clk 0:02:47]} 10. Bd2 {[%clk 0:02:59]}  axb5 {[%clk 0:02:46]} 11. Bxb5 {[%clk 0:03:00]}  Ba6 {[%clk 0:02:40]} 12. Bxa6 {[%clk 0:02:39]}  Nxa6 {[%clk 0:02:38]} 13. Nge2 {[%clk 0:02:36]}  Nb4 {[%clk 0:02:37]} 14. O-O {[%clk 0:02:33]}  Rfb8 {[%clk 0:02:36]} 15. Nc1 {[%clk 0:02:06]}  Qa6 {[%clk 0:02:34]} 16. f3 {[%clk 0:01:57]}  Nd7 {[%clk 0:02:28]} 17. Qe2 {[%clk 0:01:46]}  Qxe2 {[%clk 0:02:22]} 18. N1xe2 {[%clk 0:01:47]}  Nd3 {[%clk 0:02:22]} 19. Nb5 {[%clk 0:01:38]}  Nxb2 {[%clk 0:02:19]} 20. Bc3 {[%clk 0:01:02]}  Nxa4 {[%clk 0:02:09]} 21. Nc7 {[%clk 0:01:02]}  Nxc3 {[%clk 0:02:02]} 22. Rxa8 {[%clk 0:00:55]}  Nxe2+ {[%clk 0:01:57]} 23. Kf2 {[%clk 0:00:56]}  Rxa8 {[%clk 0:01:57]} 24. Nxa8 {[%clk 0:00:56]}  Nc3 {[%clk 0:01:56]} 25. Nc7 {[%clk 0:00:51]}  Bd4+ {[%clk 0:01:55]} 26. Ke1 {[%clk 0:00:48]}  f5 {[%clk 0:01:55]} 27. Kd2 {[%clk 0:00:47]}  fxe4 {[%clk 0:01:54]} 28. fxe4 {[%clk 0:00:42]}  Nxe4+ {[%clk 0:01:53]} 29. Kd3 {[%clk 0:00:42]}  Nef6 {[%clk 0:01:53]} 30. Rb1 {[%clk 0:00:37]}  Kf7 {[%clk 0:01:49]} 31. Rb7 {[%clk 0:00:37]}  g5 {[%clk 0:01:44]} 32. Ne6 {[%clk 0:00:36]}  h6 {[%clk 0:01:39]} 33. Nd8+ {[%clk 0:00:33]}  Kg6 {[%clk 0:01:37]} 34. Nc6 {[%clk 0:00:33]}  Ne5+ {[%clk 0:01:29]} 35. Nxe5+ {[%clk 0:00:29]}  Bxe5 {[%clk 0:01:28]} 36. Rxe7 {[%clk 0:00:23]}  Nxd5 {[%clk 0:01:26]} 37. Re8 {[%clk 0:00:20]}  Bxh2 {[%clk 0:01:21]} 38. g4 {[%clk 0:00:19]}  Nf6 {[%clk 0:01:20]} 39. Re6 {[%clk 0:00:19]}  Be5 {[%clk 0:01:19]} 0-1


[Site "https://www.chess.com"]